[Event "Open Cappelle-la-Grande"]
[Date "2026.02.25"]
[White "Orieux, Etienne"]
[Black "Bassini, Emile"]
[WhiteElo "2272"]
[BlackElo "2409"]
[Round "7.7.15"]
[Result "1/2-1/2"]
[TimeControl "40/5400+30:1800+30"]

e4 {[%clk 1:30:57]} g6 {[%clk 1:30:55]} d4 {[%clk 1:31:20]} Bg7 {[%clk 1:31:21]}
Nf3 {[%clk 1:31:43]} d6 {[%clk 1:31:42]} Bd3 {[%clk 1:31:49]} Nf6 {[%clk
1:32:06]} Nbd2 {[%clk 1:31:42]} O-O {[%clk 1:32:25]} O-O {[%clk 1:32:05]} Nc6
{[%clk 1:32:52]} Re1 {[%clk 1:32:23]} e5 {[%clk 1:33:16]} dxe5 {[%clk 1:32:39]}
Nxe5 {[%clk 1:29:57]} Nxe5 {[%clk 1:32:35]} dxe5 {[%clk 1:30:25]} Nc4 {[%clk
1:32:53]} Qe7 {[%clk 1:24:33]} a4 {[%clk 1:32:29]} a5 {[%clk 1:24:40]} b3 {[%clk
1:27:03]} Rd8 {[%clk 1:25:00]} Ba3 {[%clk 1:25:55]} Qe8 {[%clk 1:23:53]} Qd2
{[%clk 1:25:35]} b6 {[%clk 1:23:56]} Qc3 {[%clk 1:23:34]} Qc6 {[%clk 1:13:04]}
Bb2 {[%clk 1:16:52]} Nd7 {[%clk 1:12:55]} Bf1 {[%clk 1:12:30]} Bb7 {[%clk
1:12:15]} f3 {[%clk 1:10:50]} f6 {[%clk 1:11:38]} Ne3 {[%clk 1:10:44]} Qxc3
{[%clk 1:11:35]} Bxc3 {[%clk 1:11:12]} Bf8 {[%clk 1:08:53]} Bc4+ {[%clk
1:09:20]} Kg7 {[%clk 1:09:22]} Nd5 {[%clk 1:08:02]} Rac8 {[%clk 1:09:15]} Rad1
{[%clk 1:06:48]} c6 {[%clk 1:03:14]} Ne3 {[%clk 1:06:24]} Nc5 {[%clk 1:03:29]}
Kf1 {[%clk 1:05:17]} Na6 {[%clk 1:00:25]} Ke2 {[%clk 0:53:08]} Bd6 {[%clk
0:54:23]} Rd2 {[%clk 0:48:10]} Kf8 {[%clk 0:53:51]} Red1 {[%clk 0:48:26]} Ke7
{[%clk 0:53:32]} Ng4 {[%clk 0:47:26]} Bc7 {[%clk 0:48:19]} Bb2 {[%clk 0:46:51]}
h5 {[%clk 0:44:57]} Ba3+ {[%clk 0:47:00]} Nc5 {[%clk 0:45:26]} Rxd8 {[%clk
0:40:32]} Rxd8 {[%clk 0:45:46]} Bxc5+ {[%clk 0:40:30]} bxc5 {[%clk 0:46:14]}
Rxd8 {[%clk 0:40:43]} Bxd8 {[%clk 0:46:33]} Nf2 {[%clk 0:40:25]} Bc7 {[%clk
0:45:36]} h4 {[%clk 0:38:10]} Bc8 {[%clk 0:45:39]} Nd3 {[%clk 0:33:41]} Bd6
{[%clk 0:46:03]} Ke3 {[%clk 0:31:57]} Kf8 {[%clk 0:43:33]} g3 {[%clk 0:24:57]}
Kg7 {[%clk 0:41:27]} Kf2 {[%clk 0:22:55]} Kf8 {[%clk 0:33:38]} Ke3 {[%clk
0:22:35]} Ke7 {[%clk 0:25:29]} Kf2 {[%clk 0:16:39]} Kf8 {[%clk 0:24:26]} Ke3
{[%clk 0:16:23]}

[Variant "Standard"]
[Site "Europe Echecs"]

[Event "Open Cappelle-la-Grande"]
[Date "2026.02.25"]
[White "Favaloro, Andrea"]
[Black "Zeneli, Klendi"]
[WhiteElo "2409"]
[BlackElo "2268"]
[Round "7.7.16"]
[Result "0-1"]
[TimeControl "40/5400+30:1800+30"]

Nf3 {[%clk 1:24:23]} d5 {[%clk 1:30:42]} g3 {[%clk 1:24:48]} g6 {[%clk 1:31:05]}
Bg2 {[%clk 1:25:09]} Bg7 {[%clk 1:31:26]} d4 {[%clk 1:25:31]} c6 {[%clk
1:31:43]} c4 {[%clk 1:25:54]} dxc4 {[%clk 1:31:59]} Na3 {[%clk 1:26:15]} b5
{[%clk 1:32:05]} Nxb5 {[%clk 1:26:38]} cxb5 {[%clk 1:32:30]} Nh4 {[%clk
1:27:03]} Bd7 {[%clk 1:32:52]} Bxa8 {[%clk 1:27:25]} Nc6 {[%clk 1:33:18]} Bb7
{[%clk 1:27:50]} Nf6 {[%clk 1:30:03]} O-O {[%clk 1:28:01]} O-O {[%clk 1:24:06]}
Bf4 {[%clk 1:28:13]} Nd5 {[%clk 1:07:39]} Bd2 {[%clk 1:28:00]} e6 {[%clk
0:54:55]} Nf3 {[%clk 1:21:14]} Qb6 {[%clk 0:51:33]} Bxc6 {[%clk 1:21:09]} Bxc6
{[%clk 0:51:59]} Qc1 {[%clk 1:11:08]} Rc8 {[%clk 0:48:02]} a4 {[%clk 1:09:32]}
a6 {[%clk 0:37:32]} axb5 {[%clk 1:09:42]} axb5 {[%clk 0:37:29]} Re1 {[%clk
1:04:03]} Bb7 {[%clk 0:34:24]} Bh6 {[%clk 1:01:15]} Bh8 {[%clk 0:32:37]} e4
{[%clk 0:58:25]} Nb4 {[%clk 0:29:13]} Qd2 {[%clk 0:52:35]} Nd3 {[%clk 0:27:50]}
Re3 {[%clk 0:52:56]} Bxd4 {[%clk 0:22:54]} Nxd4 {[%clk 0:52:46]} Qxd4 {[%clk
0:23:21]} Ra5 {[%clk 0:46:09]} b4 {[%clk 0:16:35]} Rb5 {[%clk 0:42:18]} Bxe4
{[%clk 0:16:16]} Rxb4 {[%clk 0:41:53]} Ra8 {[%clk 0:16:21]} Qd1 {[%clk 0:25:58]}
Nxb4 {[%clk 0:15:59]}

[Variant "Standard"]
[Site "Europe Echecs"]

[Event "Open Cappelle-la-Grande"]
[Date "2026.02.25"]
[White "Pranav Anand"]
[Black "Razafindratsima, Timothe"]
[WhiteElo "2606"]
[BlackElo "2504"]
[Round "8.8.1"]
[Result "1-0"]
[TimeControl "40/5400+30:1800+30"]

e4 {[%clk 1:30:55]} c5 {[%clk 1:30:52]} Nf3 {[%clk 1:31:20]} d6 {[%clk 1:31:19]}
d4 {[%clk 1:31:45]} cxd4 {[%clk 1:31:46]} Nxd4 {[%clk 1:32:11]} Nf6 {[%clk
1:32:11]} Nc3 {[%clk 1:32:36]} a6 {[%clk 1:32:38]} Bg5 {[%clk 1:31:45]} Nbd7
{[%clk 1:33:02]} Qd2 {[%clk 1:32:04]} e6 {[%clk 1:31:17]} Bc4 {[%clk 1:32:18]}
Nc5 {[%clk 1:14:21]} f3 {[%clk 1:24:02]} Be7 {[%clk 1:07:17]} Be3 {[%clk
1:21:40]} Qc7 {[%clk 1:05:49]} Be2 {[%clk 1:13:48]} h5 {[%clk 0:58:16]} O-O
{[%clk 1:11:44]} b5 {[%clk 0:52:15]} a4 {[%clk 1:04:56]} b4 {[%clk 0:43:55]} Na2
{[%clk 1:04:35]} d5 {[%clk 0:44:21]} e5 {[%clk 1:03:19]} Nfd7 {[%clk 0:43:27]}
f4 {[%clk 0:59:33]} g5 {[%clk 0:40:28]} Bf3 {[%clk 0:46:26]} gxf4 {[%clk
0:32:59]} Bxf4 {[%clk 0:46:38]} Nxe5 {[%clk 0:33:20]} Nxb4 {[%clk 0:38:08]}
Nxf3+ {[%clk 0:26:00]} Nxf3 {[%clk 0:37:05]} Qb7 {[%clk 0:20:58]} Nd3 {[%clk
0:30:54]} Ne4 {[%clk 0:21:15]} Qe2 {[%clk 0:31:14]} f6 {[%clk 0:17:32]} c4
{[%clk 0:28:52]} dxc4 {[%clk 0:14:20]} Nf2 {[%clk 0:27:27]} Nxf2 {[%clk
0:11:45]} Rxf2 {[%clk 0:27:40]} e5 {[%clk 0:00:58]} Nxe5 {[%clk 0:27:03]} fxe5
{[%clk 0:01:27]} Qxe5 {[%clk 0:27:07]} Rh7 {[%clk 0:01:55]} Re1 {[%clk 0:23:41]}
Qb6 {[%clk 0:00:33]} Qd5 {[%clk 0:21:36]} Rf7 {[%clk 0:00:32]} Qxa8 {[%clk
0:21:52]} Rxf4 {[%clk 0:00:44]} Qxc8+ {[%clk 0:22:17]} Kf7 {[%clk 0:01:12]}
Qxc4+ {[%clk 0:22:25]}

[Variant "Standard"]
[Site "Europe Echecs"]

[Event "Open Cappelle-la-Grande"]
[Date "2026.02.25"]
[White "Pranesh M"]
[Black "Levin, Guy"]
[WhiteElo "2627"]
[BlackElo "2440"]
[Round "8.8.2"]
[Result "1-0"]
[TimeControl "40/5400+30:1800+30"]

e4 {[%clk 1:30:58]} c6 {[%clk 1:30:53]} d4 {[%clk 1:31:20]} d5 {[%clk 1:31:21]}
exd5 {[%clk 1:31:34]} cxd5 {[%clk 1:31:44]} Nf3 {[%clk 1:31:57]} Nf6 {[%clk
1:31:02]} Ne5 {[%clk 1:32:09]} Nc6 {[%clk 1:30:43]} c3 {[%clk 1:32:28]} Bf5
{[%clk 1:26:28]} Qa4 {[%clk 1:29:01]} Qc8 {[%clk 1:26:25]} Bb5 {[%clk 1:22:15]}
a6 {[%clk 1:26:22]} Bxc6+ {[%clk 1:22:12]} bxc6 {[%clk 1:26:50]} Nd2 {[%clk
1:21:05]} Nd7 {[%clk 1:22:51]} Qxc6 {[%clk 1:16:37]} Qxc6 {[%clk 1:22:36]} Nxc6
{[%clk 1:17:02]} f6 {[%clk 1:21:01]} Nb3 {[%clk 1:15:42]} e6 {[%clk 1:19:31]}
Nca5 {[%clk 1:04:00]} Rc8 {[%clk 0:54:39]} Bf4 {[%clk 0:57:39]} Nb6 {[%clk
0:52:24]} a4 {[%clk 0:56:56]} g5 {[%clk 0:43:48]} Bg3 {[%clk 0:56:08]} Kf7
{[%clk 0:41:40]} h4 {[%clk 0:50:14]} g4 {[%clk 0:41:51]} O-O {[%clk 0:46:58]}
Nc4 {[%clk 0:39:50]} Ra2 {[%clk 0:43:55]} Be7 {[%clk 0:19:34]} Nb7 {[%clk
0:42:00]} Rc6 {[%clk 0:19:14]} N3c5 {[%clk 0:39:40]} Nd2 {[%clk 0:19:24]} Re1
{[%clk 0:36:36]} Ne4 {[%clk 0:18:31]} Nxe4 {[%clk 0:36:01]} Bxe4 {[%clk
0:18:53]} Na5 {[%clk 0:36:03]} Rcc8 {[%clk 0:18:29]} Raa1 {[%clk 0:34:39]} Rhd8
{[%clk 0:17:20]} Rac1 {[%clk 0:31:57]} Rd7 {[%clk 0:14:03]} b4 {[%clk 0:32:01]}
Bf5 {[%clk 0:12:20]} Bf4 {[%clk 0:30:09]} Bd3 {[%clk 0:10:13]} Nb3 {[%clk
0:26:09]} Rc4 {[%clk 0:10:12]} h5 {[%clk 0:26:05]} Ra7 {[%clk 0:08:57]} Kh2
{[%clk 0:24:26]} Bf5 {[%clk 0:08:10]} Na5 {[%clk 0:22:51]} Rc8 {[%clk 0:08:07]}
Kg3 {[%clk 0:20:51]} Ke8 {[%clk 0:07:38]} Re2 {[%clk 0:19:11]} Kd7 {[%clk
0:07:14]} Rb2 {[%clk 0:18:33]} Raa8 {[%clk 0:06:16]} Nb3 {[%clk 0:17:45]} Rc4
{[%clk 0:06:28]} Na5 {[%clk 0:16:35]} Rcc8 {[%clk 0:06:49]} Kh2 {[%clk 0:16:03]}
Ra7 {[%clk 0:04:38]} Kg1 {[%clk 0:15:54]} Raa8 {[%clk 0:01:31]} Kf1 {[%clk
0:14:29]} Bd3+ {[%clk 0:21:20]} Ke1 {[%clk 0:43:58]} Be4 {[%clk 0:19:38]} g3
{[%clk 0:44:03]} Bf8 {[%clk 0:11:49]} Nb3 {[%clk 0:43:16]} Bf5 {[%clk 0:10:26]}
Nc5+ {[%clk 0:42:15]} Bxc5 {[%clk 0:10:15]} bxc5 {[%clk 0:39:30]} e5 {[%clk
0:10:09]} dxe5 {[%clk 0:37:37]} fxe5 {[%clk 0:09:49]} Bxe5 {[%clk 0:37:16]} Re8
{[%clk 0:08:01]} Re2 {[%clk 0:37:35]} Kc6 {[%clk 0:07:53]} Bd4 {[%clk 0:37:14]}
Rxe2+ {[%clk 0:05:32]} Kxe2 {[%clk 0:37:43]} Rb8 {[%clk 0:05:00]} Ke3 {[%clk
0:37:54]} Rb1 {[%clk 0:03:34]} Rxb1 {[%clk 0:37:24]} Bxb1 {[%clk 0:04:02]} Kf4
{[%clk 0:36:46]} Bc2 {[%clk 0:04:20]} Kxg4 {[%clk 0:36:31]}

[Variant "Standard"]
[Site "Europe Echecs"]

[Event "Open Cappelle-la-Grande"]
[Date "2026.02.25"]
[White "Cheng, Bobby"]
[Black "Poetsch, Hagen"]
[WhiteElo "2566"]
[BlackElo "2433"]
[Round "8.8.3"]
[Result "1/2-1/2"]
[TimeControl "40/5400+30:1800+30"]

d4 {[%clk 1:30:57]} Nf6 {[%clk 1:30:53]} c4 {[%clk 1:31:23]} e6 {[%clk 1:31:18]}
Nf3 {[%clk 1:31:48]} d5 {[%clk 1:31:43]} e3 {[%clk 1:32:08]} Be7 {[%clk
1:31:25]} b3 {[%clk 1:32:23]} O-O {[%clk 1:30:04]} Bd3 {[%clk 1:32:48]} c5
{[%clk 1:28:53]} O-O {[%clk 1:33:04]} cxd4 {[%clk 1:23:31]} exd4 {[%clk
1:33:19]} b6 {[%clk 1:23:57]} Nc3 {[%clk 1:32:54]} Bb7 {[%clk 1:24:19]} Bb2
{[%clk 1:31:41]} Nc6 {[%clk 1:10:46]} Re1 {[%clk 1:31:31]} Rc8 {[%clk 1:04:14]}
Rc1 {[%clk 1:30:24]} Nb4 {[%clk 1:02:28]} Bf1 {[%clk 1:28:08]} dxc4 {[%clk
0:56:07]} bxc4 {[%clk 1:28:25]} Bd6 {[%clk 0:56:33]} a3 {[%clk 1:04:58]} Nc6
{[%clk 0:56:56]} Bd3 {[%clk 1:05:16]} Ne7 {[%clk 0:48:43]} g3 {[%clk 0:58:23]}
a6 {[%clk 0:39:09]} a4 {[%clk 0:57:53]} Bb4 {[%clk 0:37:31]} Re3 {[%clk
0:33:30]} Nf5 {[%clk 0:35:32]} Bxf5 {[%clk 0:30:05]} exf5 {[%clk 0:35:55]} Ne2
{[%clk 0:30:22]} Ne4 {[%clk 0:23:42]} d5 {[%clk 0:30:37]} Bc5 {[%clk 0:23:11]}
Ned4 {[%clk 0:29:30]} b5 {[%clk 0:16:34]} axb5 {[%clk 0:20:11]} axb5 {[%clk
0:16:58]} Rb3 {[%clk 0:20:39]} Ba6 {[%clk 0:11:23]} cxb5 {[%clk 0:09:11]} Bb7
{[%clk 0:10:26]} Ba3 {[%clk 0:06:13]}

[Variant "Standard"]
[Site "Europe Echecs"]

[Event "Open Cappelle-la-Grande"]
[Date "2026.02.25"]
[White "Loiseau, Quentin"]
[Black "Can, Emre"]
[WhiteElo "2391"]
[BlackElo "2541"]
[Round "8.8.4"]
[Result "0-1"]
[TimeControl "40/5400+30:1800+30"]

d4 {[%clk 1:30:53]} Nf6 {[%clk 1:30:32]} c4 {[%clk 1:30:32]} g6 {[%clk 1:30:36]}
Nc3 {[%clk 1:28:23]} d5 {[%clk 1:29:40]} cxd5 {[%clk 1:26:02]} Nxd5 {[%clk
1:30:01]} e4 {[%clk 1:26:30]} Nxc3 {[%clk 1:30:17]} bxc3 {[%clk 1:26:54]} Bg7
{[%clk 1:30:39]} Bc4 {[%clk 1:26:45]} c5 {[%clk 1:29:23]} Ne2 {[%clk 1:25:37]}
Nc6 {[%clk 1:27:38]} Be3 {[%clk 1:23:41]} O-O {[%clk 1:26:54]} O-O {[%clk
1:22:38]} Bg4 {[%clk 1:26:24]} f3 {[%clk 1:20:22]} Bd7 {[%clk 1:26:36]} Rb1
{[%clk 1:12:30]} cxd4 {[%clk 1:25:50]} cxd4 {[%clk 1:11:51]} a6 {[%clk 1:26:12]}
Qd2 {[%clk 1:03:38]} Na5 {[%clk 1:25:41]} Bd3 {[%clk 1:02:33]} Bb5 {[%clk
1:24:26]} d5 {[%clk 0:36:47]} Qd7 {[%clk 1:06:34]} Bd4 {[%clk 0:27:36]} Bxd4+
{[%clk 0:57:19]} Nxd4 {[%clk 0:28:03]} Bxd3 {[%clk 0:56:21]} Qxd3 {[%clk
0:28:26]} Rac8 {[%clk 0:55:40]} Qa3 {[%clk 0:22:25]} Nc4 {[%clk 0:51:50]} Qb4
{[%clk 0:22:04]} Rc7 {[%clk 0:51:10]} Rfc1 {[%clk 0:08:09]} Rfc8 {[%clk
0:50:45]} Rc3 {[%clk 0:07:59]} e6 {[%clk 0:44:42]} Rd1 {[%clk 0:03:33]} exd5
{[%clk 0:43:00]} Ne2 {[%clk 0:03:44]} Rc5 {[%clk 0:29:39]} Rcd3 {[%clk 0:03:06]}
Rb5 {[%clk 0:21:28]} Qe1 {[%clk 0:03:13]} Qc7 {[%clk 0:19:09]} Nc3 {[%clk
0:01:45]} Qb6+ {[%clk 0:16:37]} Kh1 {[%clk 0:01:49]} Nb2 {[%clk 0:13:15]} Nxd5
{[%clk 0:01:19]} Nxd1 {[%clk 0:10:52]} Qxd1 {[%clk 0:00:36]} Rb1 {[%clk
0:09:54]} Nxb6 {[%clk 0:00:32]} Rcc1 {[%clk 0:10:19]}

[Variant "Standard"]
[Site "Europe Echecs"]

[Event "Open Cappelle-la-Grande"]
[Date "2026.02.25"]
[White "Degraeve, Jean-Marc"]
[Black "Zamengo, Fulvio"]
[WhiteElo "2503"]
[BlackElo "2375"]
[Round "8.8.5"]
[Result "1-0"]
[TimeControl "40/5400+30:1800+30"]

e4 {[%clk 1:30:57]} e6 {[%clk 1:30:52]} d4 {[%clk 1:31:15]} d5 {[%clk 1:31:14]}
Nd2 {[%clk 1:31:29]} c5 {[%clk 1:31:32]} exd5 {[%clk 1:31:39]} Qxd5 {[%clk
1:31:43]} dxc5 {[%clk 1:31:26]} Qxc5 {[%clk 1:31:57]} Ngf3 {[%clk 1:31:13]} Nf6
{[%clk 1:31:50]} Bd3 {[%clk 1:31:28]} Nbd7 {[%clk 1:31:11]} O-O {[%clk 1:31:11]}
Qc7 {[%clk 1:31:35]} a4 {[%clk 1:26:39]} Nc5 {[%clk 1:15:43]} Bc4 {[%clk
1:25:03]} Bd6 {[%clk 1:14:20]} Re1 {[%clk 1:18:38]} O-O {[%clk 1:14:35]} a5
{[%clk 1:18:13]} Bd7 {[%clk 1:06:59]} Qe2 {[%clk 1:17:20]} Bc6 {[%clk 1:04:27]}
b3 {[%clk 1:09:51]} Nce4 {[%clk 0:55:53]} Nxe4 {[%clk 1:08:49]} Nxe4 {[%clk
0:49:21]} Bb2 {[%clk 1:06:17]} Bb4 {[%clk 0:44:23]} Be5 {[%clk 1:05:12]} Qe7
{[%clk 0:42:22]} Rec1 {[%clk 1:05:10]} Bc5 {[%clk 0:31:55]} Bd4 {[%clk 1:04:56]}
Rfd8 {[%clk 0:32:05]} Bxc5 {[%clk 0:36:09]} Qxc5 {[%clk 0:32:20]} Qe1 {[%clk
0:35:05]} Ng5 {[%clk 0:20:58]} Nxg5 {[%clk 0:31:01]} Qxg5 {[%clk 0:21:22]} Bf1
{[%clk 0:31:27]} Rd2 {[%clk 0:21:27]} c4 {[%clk 0:31:39]} Rad8 {[%clk 0:21:42]}
b4 {[%clk 0:31:59]} a6 {[%clk 0:12:09]} Rd1 {[%clk 0:31:32]} Rxd1 {[%clk
0:09:43]} Rxd1 {[%clk 0:32:00]} Rxd1 {[%clk 0:09:48]} Qxd1 {[%clk 0:32:28]} h5
{[%clk 0:10:10]} Qd3 {[%clk 0:31:36]} Qc1 {[%clk 0:02:17]} b5 {[%clk 0:31:43]}
axb5 {[%clk 0:02:43]} cxb5 {[%clk 0:32:07]} Bd5 {[%clk 0:03:11]} a6 {[%clk
0:32:07]} bxa6 {[%clk 0:03:16]} bxa6 {[%clk 0:32:35]} Qa1 {[%clk 0:03:39]} h4
{[%clk 0:31:06]} f6 {[%clk 0:02:19]} Kh2 {[%clk 0:27:43]} Kf8 {[%clk 0:02:45]}
Be2 {[%clk 0:25:46]} g5 {[%clk 0:02:02]} hxg5 {[%clk 0:24:54]} Qe5+ {[%clk
0:02:04]} g3 {[%clk 0:24:47]} h4 {[%clk 0:02:28]} Qa3+ {[%clk 0:23:31]} Kg8
{[%clk 0:02:31]} Qe3 {[%clk 0:22:15]} Qa1 {[%clk 0:02:10]} gxh4 {[%clk 0:13:41]}
Qh1+ {[%clk 0:07:37]} Kg3 {[%clk 0:44:04]} Qg1+ {[%clk 0:07:19]} Kf4 {[%clk
0:43:54]} fxg5+ {[%clk 0:05:13]} hxg5 {[%clk 0:44:12]} Qh2+ {[%clk 0:05:39]} Qg3
{[%clk 0:43:06]} Qh1 {[%clk 0:04:45]} Bd3 {[%clk 0:40:07]} Qc1+ {[%clk 0:04:45]}
Qe3 {[%clk 0:40:21]} Qc7+ {[%clk 0:05:02]} Kg4 {[%clk 0:40:02]} e5 {[%clk
0:04:04]} a7 {[%clk 0:33:53]} Qd7+ {[%clk 0:04:11]} Kg3 {[%clk 0:32:42]} e4
{[%clk 0:03:45]} Bxe4 {[%clk 0:32:17]} Bxe4 {[%clk 0:04:01]} Qxe4 {[%clk
0:32:22]} Qxa7 {[%clk 0:04:28]} Qe6+ {[%clk 0:32:28]} Kg7 {[%clk 0:04:45]} Qe5+
{[%clk 0:32:30]} Kg6 {[%clk 0:05:02]} Qf6+ {[%clk 0:32:52]} Kh7 {[%clk 0:05:26]}
Qf5+ {[%clk 0:27:44]} Kg7 {[%clk 0:05:47]} g6 {[%clk 0:26:42]} Qa3+ {[%clk
0:05:45]} Kg4 {[%clk 0:26:34]} Qa4+ {[%clk 0:04:26]} Kg5 {[%clk 0:26:47]}

[Variant "Standard"]
[Site "Europe Echecs"]

[Event "Open Cappelle-la-Grande"]
[Date "2026.02.25"]
[White "Fiedorek, Michal"]
[Black "Rohith Krishna S"]
[WhiteElo "2288"]
[BlackElo "2484"]
[Round "8.8.6"]
[Result "0-1"]
[TimeControl "40/5400+30:1800+30"]

e4 {[%clk 1:30:56]} e5 {[%clk 1:30:38]} Nf3 {[%clk 1:31:19]} Nc6 {[%clk
1:31:03]} Bb5 {[%clk 1:31:13]} a6 {[%clk 1:31:25]} Ba4 {[%clk 1:31:37]} Nf6
{[%clk 1:31:49]} O-O {[%clk 1:31:53]} Be7 {[%clk 1:32:01]} Re1 {[%clk 1:32:09]}
b5 {[%clk 1:32:25]} Bb3 {[%clk 1:32:33]} O-O {[%clk 1:32:41]} a4 {[%clk
1:32:22]} Bb7 {[%clk 1:32:26]} d3 {[%clk 1:32:14]} d6 {[%clk 1:32:48]} h3 {[%clk
1:30:46]} Na5 {[%clk 1:31:26]} Ba2 {[%clk 1:31:02]} c5 {[%clk 1:30:21]} Nbd2
{[%clk 1:29:55]} Qc7 {[%clk 1:25:33]} Nf1 {[%clk 1:27:06]} b4 {[%clk 1:20:00]}
Ne3 {[%clk 1:21:09]} b3 {[%clk 1:16:47]} cxb3 {[%clk 1:06:42]} Nc6 {[%clk
1:08:04]} b4 {[%clk 0:58:59]} Nxb4 {[%clk 1:08:02]} Bc4 {[%clk 0:59:18]} Bc8
{[%clk 1:02:52]} Bd2 {[%clk 0:58:16]} Rb8 {[%clk 1:02:58]} Nc2 {[%clk 0:50:23]}
Nc6 {[%clk 1:00:46]} Rb1 {[%clk 0:46:27]} Na5 {[%clk 0:59:59]} Ba2 {[%clk
0:40:36]} Nb3 {[%clk 0:59:16]} Ne3 {[%clk 0:31:58]} Nxd2 {[%clk 0:52:07]} Nxd2
{[%clk 0:30:16]} Bd8 {[%clk 0:52:21]} Bc4 {[%clk 0:19:43]} Qe7 {[%clk 0:50:52]}
Nf3 {[%clk 0:15:20]} Kh8 {[%clk 0:49:59]} Qd2 {[%clk 0:14:13]} Ng8 {[%clk
0:48:09]} Kh2 {[%clk 0:11:30]} Qe8 {[%clk 0:47:50]} b3 {[%clk 0:11:25]} Ne7
{[%clk 0:46:57]} Nd5 {[%clk 0:08:09]} f5 {[%clk 0:42:57]} Nxe7 {[%clk 0:06:25]}
Bxe7 {[%clk 0:43:17]} Qe2 {[%clk 0:04:51]} Qg6 {[%clk 0:37:41]} Rb2 {[%clk
0:04:50]} Qh6 {[%clk 0:37:23]} Ng1 {[%clk 0:02:09]} Rb4 {[%clk 0:33:43]} Qd2
{[%clk 0:01:28]} Bg5 {[%clk 0:32:55]} Qe2 {[%clk 0:01:45]} Bh4 {[%clk 0:30:34]}
Rf1 {[%clk 0:00:50]} Bb7 {[%clk 0:30:30]} Kh1 {[%clk 0:00:46]} Bd8 {[%clk
0:28:44]} f3 {[%clk 0:00:33]} a5 {[%clk 0:25:17]} Qd2 {[%clk 0:00:32]} Bg5
{[%clk 0:25:26]} Qe1 {[%clk 0:00:54]} Be3 {[%clk 0:22:12]} Re2 {[%clk 0:00:57]}
Bd4 {[%clk 0:22:00]} f4 {[%clk 0:25:55]} exf4 {[%clk 0:50:58]} exf5 {[%clk
0:23:41]} Be3 {[%clk 0:51:20]} Be6 {[%clk 0:20:16]} Bc8 {[%clk 0:49:09]} Bxc8
{[%clk 0:17:20]} Rxc8 {[%clk 0:48:13]} Nf3 {[%clk 0:17:25]} Qh5 {[%clk 0:42:49]}
Nd2 {[%clk 0:16:01]} d5 {[%clk 0:42:48]} Rf3 {[%clk 0:15:26]} Rf8 {[%clk
0:39:39]} Nf1 {[%clk 0:09:44]} d4 {[%clk 0:39:20]} Nxe3 {[%clk 0:06:27]} dxe3
{[%clk 0:34:33]} Qf1 {[%clk 0:06:41]} h6 {[%clk 0:33:07]} g3 {[%clk 0:04:38]}
Rxb3 {[%clk 0:23:58]} Rxf4 {[%clk 0:03:52]} Rxd3 {[%clk 0:17:29]} f6 {[%clk
0:01:59]} g6 {[%clk 0:12:48]} g4 {[%clk 0:00:36]} Qe5 {[%clk 0:12:23]} Rf3
{[%clk 0:00:58]} c4 {[%clk 0:11:05]} f7 {[%clk 0:00:35]} c3 {[%clk 0:10:12]} g5
{[%clk 0:00:35]} hxg5 {[%clk 0:08:53]} Kg2 {[%clk 0:00:42]} Rd2 {[%clk 0:09:03]}
Qe1 {[%clk 0:00:39]} Qe4 {[%clk 0:08:26]}

[Variant "Standard"]
[Site "Europe Echecs"]

[Event "Open Cappelle-la-Grande"]
[Date "2026.02.25"]
[White "Eugene, Floryan"]
[Black "Jacobsen, Mikkel Manosri"]
[WhiteElo "2478"]
[BlackElo "2291"]
[Round "8.8.7"]
[Result "1-0"]
[TimeControl "40/5400+30:1800+30"]

e4 {[%clk 1:30:55]} c6 {[%clk 1:30:55]} d4 {[%clk 1:31:14]} d5 {[%clk 1:31:20]}
exd5 {[%clk 1:31:36]} cxd5 {[%clk 1:31:45]} Bd3 {[%clk 1:32:02]} Nc6 {[%clk
1:32:02]} c3 {[%clk 1:32:26]} Nf6 {[%clk 1:32:19]} Bf4 {[%clk 1:32:46]} Bg4
{[%clk 1:32:40]} Qb3 {[%clk 1:33:11]} Qd7 {[%clk 1:33:03]} Nd2 {[%clk 1:33:33]}
e6 {[%clk 1:33:28]} Ngf3 {[%clk 1:33:57]} Bd6 {[%clk 1:33:53]} Bxd6 {[%clk
1:34:22]} Qxd6 {[%clk 1:34:19]} O-O {[%clk 1:34:43]} O-O {[%clk 1:34:44]} Rfe1
{[%clk 1:35:09]} Ne7 {[%clk 1:34:51]} Nh4 {[%clk 1:35:29]} Ng6 {[%clk 1:35:06]}
Bxg6 {[%clk 1:35:26]} hxg6 {[%clk 1:35:19]} Nhf3 {[%clk 1:35:41]} Bxf3 {[%clk
1:32:58]} Nxf3 {[%clk 1:35:50]} Ne4 {[%clk 1:32:54]} Ne5 {[%clk 1:26:16]} a5
{[%clk 1:24:57]} a3 {[%clk 1:20:44]} Qe7 {[%clk 1:21:18]} Re3 {[%clk 1:07:48]}
Rfc8 {[%clk 1:18:32]} Nd3 {[%clk 1:03:03]} g5 {[%clk 1:15:41]} f3 {[%clk
0:54:24]} Nf6 {[%clk 1:15:39]} Rae1 {[%clk 0:54:22]} Rc7 {[%clk 1:09:59]} Qd1
{[%clk 0:51:47]} Nd7 {[%clk 1:02:41]} Rf1 {[%clk 0:45:02]} Nf6 {[%clk 0:56:31]}
Re5 {[%clk 0:43:47]} Ne4 {[%clk 0:46:55]} fxe4 {[%clk 0:41:09]} f6 {[%clk
0:47:06]} Qh5 {[%clk 0:35:50]} fxe5 {[%clk 0:43:19]} Nxe5 {[%clk 0:33:54]} Rf8
{[%clk 0:43:39]} Rxf8+ {[%clk 0:30:48]} Qxf8 {[%clk 0:44:01]} Ng6 {[%clk
0:29:44]} Qf6 {[%clk 0:34:48]} Qh8+ {[%clk 0:29:35]} Kf7 {[%clk 0:35:15]} Ne5+
{[%clk 0:29:59]} Ke7 {[%clk 0:35:38]} Qb8 {[%clk 0:28:46]} Kd6 {[%clk 0:35:42]}
Nc4+ {[%clk 0:29:09]} Kd7 {[%clk 0:33:42]} Nb6+ {[%clk 0:29:22]} Kc6 {[%clk
0:33:20]} Na8 {[%clk 0:29:44]} Re7 {[%clk 0:30:58]} Qc8+ {[%clk 0:12:37]} Kb5
{[%clk 0:31:26]} b3 {[%clk 0:12:54]} Ka6 {[%clk 0:31:06]} Qc5 {[%clk 0:12:29]}
e5 {[%clk 0:30:45]} dxe5 {[%clk 0:12:49]} Qe6 {[%clk 0:30:17]} exd5 {[%clk
0:12:18]} Qg6 {[%clk 0:29:57]} h3 {[%clk 0:11:44]}

[Variant "Standard"]
[Site "Europe Echecs"]